[Event "*** SCC Grand Prix: Titled Tuesday Blitz"]
[Site "Chess.com"]
[Date "2020.07.21"]
[Round "5"]
[White "hansen"]
[Black "BakaPG"]
[Result "1-0"]
[WhiteElo "2907"]
[BlackElo "2647"]
[TimeControl "180+1"]
[EndTime "10:56:29 PDT"]
[Termination "hansen won on time"]

1. e4 {[%clk 0:03:00.1]} 1... e6 {[%clk 0:02:59.5]} 2. d4 {[%clk 0:02:55.2]}
2... d5 {[%clk 0:02:58.1]} 3. Nc3 {[%clk 0:02:54.7]} 3... Nf6 {[%clk 0:02:57]}
4. Bg5 {[%clk 0:02:54.5]} 4... Be7 {[%clk 0:02:56.4]} 5. e5 {[%clk 0:02:55]}
5... Nfd7 {[%clk 0:02:55.6]} 6. Bxe7 {[%clk 0:02:55.4]} 6... Qxe7 {[%clk
0:02:54.9]} 7. f4 {[%clk 0:02:56]} 7... a6 {[%clk 0:02:55.2]} 8. Nf3 {[%clk
0:02:55.4]} 8... c5 {[%clk 0:02:55.8]} 9. Qd2 {[%clk 0:02:55.7]} 9... Nc6 {[%clk
0:02:55.7]} 10. dxc5 {[%clk 0:02:55.9]} 10... Qxc5 {[%clk 0:02:55]} 11. Bd3
{[%clk 0:02:50.8]} 11... b5 {[%clk 0:02:53.2]} 12. a3 {[%clk 0:02:43]} 12... h6
{[%clk 0:02:41.3]} 13. Qf2 {[%clk 0:02:40.9]} 13... b4 {[%clk 0:02:36.9]} 14.
Qxc5 {[%clk 0:01:54.6]} 14... Nxc5 {[%clk 0:02:35.1]} 15. axb4 {[%clk
0:01:55.1]} 15... Nxb4 {[%clk 0:02:34.3]} 16. Ke2 {[%clk 0:01:55]} 16... a5
{[%clk 0:02:25.4]} 17. Na4 {[%clk 0:01:27.6]} 17... Ncxd3 {[%clk 0:02:21.2]} 18.
cxd3 {[%clk 0:01:27.5]} 18... Ba6 {[%clk 0:02:19.5]} 19. Nc5 {[%clk 0:01:25.4]}
19... O-O {[%clk 0:01:48.6]} 20. Kd2 {[%clk 0:01:21.3]} 20... Bb5 {[%clk
0:01:45.2]} 21. Nd4 {[%clk 0:01:14.3]} 21... Rfb8 {[%clk 0:01:43.5]} 22. Ra3
{[%clk 0:01:10.3]} 22... Nc6 {[%clk 0:01:39.8]} 23. Nc2 {[%clk 0:00:49.8]} 23...
Ba6 {[%clk 0:01:32.3]} 24. b3 {[%clk 0:00:38.8]} 24... Bc8 {[%clk 0:01:30.4]}
25. Rha1 {[%clk 0:00:37.4]} 25... Rb5 {[%clk 0:01:29.6]} 26. Na4 {[%clk
0:00:31.4]} 26... Rab8 {[%clk 0:01:29.1]} 27. Rb1 {[%clk 0:00:25]} 27... Bd7
{[%clk 0:01:27]} 28. Nc3 {[%clk 0:00:24.6]} 28... R5b7 {[%clk 0:01:25.4]} 29.
Ne2 {[%clk 0:00:23.5]} 29... g5 {[%clk 0:01:17.7]} 30. g3 {[%clk 0:00:23.3]}
30... gxf4 {[%clk 0:01:16]} 31. gxf4 {[%clk 0:00:23.6]} 31... Kh7 {[%clk
0:00:57.8]} 32. Ke3 {[%clk 0:00:15.2]} 32... Rg8 {[%clk 0:00:54.9]} 33. Ncd4
{[%clk 0:00:08.1]} 33... Rg2 {[%clk 0:00:46.3]} 34. Nxc6 {[%clk 0:00:07]} 34...
Bxc6 {[%clk 0:00:45.4]} 35. Rxa5 {[%clk 0:00:07.3]} 35... Rxh2 {[%clk
0:00:43.5]} 36. Nd4 {[%clk 0:00:07]} 36... Bd7 {[%clk 0:00:37.7]} 37. b4 {[%clk
0:00:07.5]} 37... Rh3+ {[%clk 0:00:31.1]} 38. Kd2 {[%clk 0:00:07.5]} 38... Rh2+
{[%clk 0:00:30.7]} 39. Kc3 {[%clk 0:00:07.6]} 39... h5 {[%clk 0:00:26.6]} 40. b5
{[%clk 0:00:07.8]} 40... Rc7+ {[%clk 0:00:26.7]} 41. Kb4 {[%clk 0:00:06.4]}
41... Rd2 {[%clk 0:00:24.8]} 42. Rb3 {[%clk 0:00:05.8]} 42... h4 {[%clk
0:00:21.7]} 43. Nf3 {[%clk 0:00:06]} 43... Rf2 {[%clk 0:00:19.3]} 44. d4 {[%clk
0:00:04.8]} 44... Kh6 {[%clk 0:00:12.1]} 45. b6 {[%clk 0:00:03]} 45... Rb7
{[%clk 0:00:10.9]} 46. Kc5 {[%clk 0:00:02.9]} 46... h3 {[%clk 0:00:10.4]} 47.
Ng5 {[%clk 0:00:01.8]} 47... h2 {[%clk 0:00:09.4]} 48. Rh3+ {[%clk 0:00:02.7]}
48... Kg6 {[%clk 0:00:09.4]} 49. Ra7 {[%clk 0:00:02.8]} 49... Bc8 {[%clk
0:00:08]} 50. Rxb7 {[%clk 0:00:02.8]} 50... Bxb7 {[%clk 0:00:08]} 51. Kd6 {[%clk
0:00:03.5]} 51... Rxf4 {[%clk 0:00:06.6]} 52. Nxf7 {[%clk 0:00:03.1]} 52... Rxf7
{[%clk 0:00:06.2]} 53. Rxh2 {[%clk 0:00:03.5]} 53... Rf4 {[%clk 0:00:03.2]} 54.
Kxe6 {[%clk 0:00:02]} 54... Rxd4 {[%clk 0:00:02.7]} 55. Rg2+ {[%clk 0:00:02.6]}
55... Kh6 {[%clk 0:00:02.2]} 56. Kf6 {[%clk 0:00:02.4]} 56... Rf4+ {[%clk
0:00:01.9]} 57. Ke7 {[%clk 0:00:03]} 57... d4 {[%clk 0:00:02.7]} 58. Rd2 {[%clk
0:00:03.3]} 58... Kg5 {[%clk 0:00:02.3]} 59. e6 {[%clk 0:00:03.4]} 59... Bd5
{[%clk 0:00:01.9]} 60. Kd6 {[%clk 0:00:03.5]} 1-0

[Event "*** SCC Grand Prix: Titled Tuesday Blitz"]
[Site "Chess.com"]
[Date "2020.07.21"]
[Round "5"]
[White "czasnaszachy"]
[Black "Azoulas1"]
[Result "1-0"]
[WhiteElo "2246"]
[BlackElo "2018"]
[TimeControl "180+1"]
[EndTime "10:56:30 PDT"]
[Termination "czasnaszachy won on time"]

1. d4 {[%clk 0:03:00.9]} 1... Nf6 {[%clk 0:02:58.2]} 2. c4 {[%clk 0:03:00.2]}
2... e6 {[%clk 0:02:57.2]} 3. Nc3 {[%clk 0:02:58.4]} 3... Bb4 {[%clk 0:02:56]}
4. e3 {[%clk 0:02:57.2]} 4... d5 {[%clk 0:02:53.5]} 5. Ne2 {[%clk 0:02:52.4]}
5... O-O {[%clk 0:02:51]} 6. a3 {[%clk 0:02:51.9]} 6... Be7 {[%clk 0:02:48.8]}
7. cxd5 {[%clk 0:02:51.3]} 7... exd5 {[%clk 0:02:47.2]} 8. g3 {[%clk 0:02:51.2]}
8... Bf5 {[%clk 0:02:42.7]} 9. Bg2 {[%clk 0:02:51]} 9... Re8 {[%clk 0:02:39.7]}
10. O-O {[%clk 0:02:50.5]} 10... c6 {[%clk 0:02:38.4]} 11. b4 {[%clk 0:02:35.7]}
11... Nbd7 {[%clk 0:02:29.3]} 12. b5 {[%clk 0:02:34]} 12... Rc8 {[%clk
0:02:23.9]} 13. bxc6 {[%clk 0:02:25.2]} 13... bxc6 {[%clk 0:02:21.6]} 14. a4
{[%clk 0:02:17.7]} 14... Nb6 {[%clk 0:02:19.2]} 15. Ba3 {[%clk 0:02:04.2]} 15...
Bxa3 {[%clk 0:02:16.3]} 16. Rxa3 {[%clk 0:02:04]} 16... Ne4 {[%clk 0:02:14.1]}
17. Nxe4 {[%clk 0:01:53.1]} 17... Bxe4 {[%clk 0:02:12.2]} 18. Bxe4 {[%clk
0:01:45]} 18... Rxe4 {[%clk 0:02:10.1]} 19. Nc3 {[%clk 0:01:43.6]} 19... Re6
{[%clk 0:02:05.7]} 20. Rb3 {[%clk 0:01:38.8]} 20... h5 {[%clk 0:02:02.4]} 21.
Qxh5 {[%clk 0:01:32.2]} 21... Rh6 {[%clk 0:01:59.8]} 22. Qe2 {[%clk 0:01:20.8]}
22... Nc4 {[%clk 0:01:57]} 23. Rfb1 {[%clk 0:01:10]} 23... Qa5 {[%clk
0:01:31.5]} 24. Rb8 {[%clk 0:00:50.5]} 24... Rxb8 {[%clk 0:01:29.7]} 25. Rxb8+
{[%clk 0:00:49.9]} 25... Kh7 {[%clk 0:01:29.3]} 26. Qc2+ {[%clk 0:00:43.1]}
26... g6 {[%clk 0:01:24.7]} 27. Qb3 {[%clk 0:00:33.7]} 27... Kg7 {[%clk
0:01:13.5]} 28. Qb4 {[%clk 0:00:28.7]} 28... Qc7 {[%clk 0:01:11.4]} 29. Rb7
{[%clk 0:00:24.1]} 29... Qc8 {[%clk 0:01:06]} 30. Qe7 {[%clk 0:00:22.2]} 30...
Qf5 {[%clk 0:00:36.5]} 31. Rxa7 {[%clk 0:00:22.1]} 31... Rxh2 {[%clk 0:00:21.7]}
32. Qxf7+ {[%clk 0:00:13.3]} 32... Qxf7 {[%clk 0:00:19.8]} 33. Rxf7+ {[%clk
0:00:13.5]} 33... Kxf7 {[%clk 0:00:19.8]} 34. Kxh2 {[%clk 0:00:14.2]} 34... Ke6
{[%clk 0:00:19.1]} 35. Kg2 {[%clk 0:00:14]} 35... Kd6 {[%clk 0:00:17.6]} 36. Kf3
{[%clk 0:00:13.7]} 36... Ke6 {[%clk 0:00:16.8]} 37. Kg4 {[%clk 0:00:13.5]} 37...
Kf6 {[%clk 0:00:16.4]} 38. Kf3 {[%clk 0:00:13]} 38... Ke6 {[%clk 0:00:16]} 39.
Na2 {[%clk 0:00:11.5]} 39... Na5 {[%clk 0:00:13.4]} 40. Ke2 {[%clk 0:00:07.8]}
40... Nc4 {[%clk 0:00:11.9]} 41. Nb4 {[%clk 0:00:03.8]} 41... Kd6 {[%clk
0:00:10.6]} 42. Na2 {[%clk 0:00:04.2]} 42... Na5 {[%clk 0:00:09.7]} 43. Nc3
{[%clk 0:00:04.3]} 43... Nc4 {[%clk 0:00:09.2]} 44. Kd3 {[%clk 0:00:04]} 44...
Na5 {[%clk 0:00:08.6]} 45. f3 {[%clk 0:00:04]} 45... Nc4 {[%clk 0:00:08.1]} 46.
e4 {[%clk 0:00:04.1]} 46... Na5 {[%clk 0:00:07.1]} 47. e5+ {[%clk 0:00:03.5]}
47... Ke6 {[%clk 0:00:06.3]} 48. Ne2 {[%clk 0:00:03.3]} 48... Nc4 {[%clk
0:00:05.9]} 49. Nf4+ {[%clk 0:00:03.5]} 49... Kf5 {[%clk 0:00:05]} 50. Ne2
{[%clk 0:00:01.3]} 50... g5 {[%clk 0:00:04.1]} 51. Nc3 {[%clk 0:00:01.6]} 51...
Na5 {[%clk 0:00:03.7]} 52. Nd1 {[%clk 0:00:01.6]} 52... Nc4 {[%clk 0:00:02.8]}
53. Ne3+ {[%clk 0:00:02]} 53... Nxe3 {[%clk 0:00:01.8]} 54. Kxe3 {[%clk
0:00:02.5]} 54... g4 {[%clk 0:00:02]} 55. f4 {[%clk 0:00:02.8]} 55... Ke6 {[%clk
0:00:01.5]} 56. Kd3 {[%clk 0:00:03.3]} 56... Kf5 {[%clk 0:00:01.1]} 57. Kc3
{[%clk 0:00:03.8]} 57... Ke6 {[%clk 0:00:01.3]} 58. Kb4 {[%clk 0:00:04]} 58...
Kf5 {[%clk 0:00:01.5]} 59. Kc5 {[%clk 0:00:04.4]} 1-0

[Event "*** SCC Grand Prix: Titled Tuesday Blitz"]
[Site "Chess.com"]
[Date "2020.07.21"]
[Round "5"]
[White "vladislavkovalev"]
[Black "VovenRogel"]
[Result "1-0"]
[WhiteElo "2904"]
[BlackElo "2748"]
[TimeControl "180+1"]
[EndTime "10:56:32 PDT"]
[Termination "vladislavkovalev won on time"]

1. e4 {[%clk 0:03:00.9]} 1... e5 {[%clk 0:02:56.5]} 2. Nf3 {[%clk 0:03:01.1]}
2... Nc6 {[%clk 0:02:56.8]} 3. Bb5 {[%clk 0:03:01.7]} 3... Nf6 {[%clk 0:02:57]}
4. O-O {[%clk 0:03:01.8]} 4... Nxe4 {[%clk 0:02:56.5]} 5. Re1 {[%clk 0:03:02.3]}
5... Nd6 {[%clk 0:02:56.7]} 6. Nxe5 {[%clk 0:03:02.9]} 6... Be7 {[%clk
0:02:57.1]} 7. Bf1 {[%clk 0:03:02.8]} 7... Nxe5 {[%clk 0:02:57.4]} 8. Rxe5
{[%clk 0:03:03.7]} 8... O-O {[%clk 0:02:57.8]} 9. d4 {[%clk 0:03:03.9]} 9... Bf6
{[%clk 0:02:57.6]} 10. Re1 {[%clk 0:03:04.5]} 10... Re8 {[%clk 0:02:58]} 11. c3
{[%clk 0:03:04.1]} 11... Rxe1 {[%clk 0:02:55]} 12. Qxe1 {[%clk 0:03:05]} 12...
Ne8 {[%clk 0:02:51.5]} 13. a4 {[%clk 0:03:04.8]} 13... d5 {[%clk 0:02:46.9]} 14.
a5 {[%clk 0:03:05.2]} 14... Nd6 {[%clk 0:02:43.9]} 15. Bf4 {[%clk 0:03:05.1]}
15... Bf5 {[%clk 0:02:41.5]} 16. Nd2 {[%clk 0:02:53.2]} 16... Rc8 {[%clk
0:02:23.6]} 17. Nf3 {[%clk 0:02:35.7]} 17... c6 {[%clk 0:02:01.8]} 18. Ne5
{[%clk 0:02:20.3]} 18... Bg5 {[%clk 0:01:56.2]} 19. Qe3 {[%clk 0:02:12.2]} 19...
Bxf4 {[%clk 0:01:48.1]} 20. Qxf4 {[%clk 0:02:13.1]} 20... f6 {[%clk 0:01:48.4]}
21. Nd3 {[%clk 0:02:10.4]} 21... Bxd3 {[%clk 0:01:32.4]} 22. Bxd3 {[%clk
0:02:11.3]} 22... Qe7 {[%clk 0:01:32.8]} 23. h4 {[%clk 0:02:05.2]} 23... Re8
{[%clk 0:01:26.1]} 24. b3 {[%clk 0:01:57.8]} 24... a6 {[%clk 0:01:24]} 25. c4
{[%clk 0:01:50.8]} 25... dxc4 {[%clk 0:01:18.7]} 26. bxc4 {[%clk 0:01:51.7]}
26... Nf7 {[%clk 0:01:03.9]} 27. g3 {[%clk 0:01:10.3]} 27... g6 {[%clk
0:01:03.3]} 28. h5 {[%clk 0:01:02.8]} 28... Kg7 {[%clk 0:01:02.8]} 29. Kg2
{[%clk 0:01:03.4]} 29... Qd6 {[%clk 0:00:54.6]} 30. Qxd6 {[%clk 0:00:20.2]}
30... Nxd6 {[%clk 0:00:55.5]} 31. hxg6 {[%clk 0:00:20.8]} 31... hxg6 {[%clk
0:00:55.2]} 32. Rb1 {[%clk 0:00:21.5]} 32... Re7 {[%clk 0:00:53.6]} 33. Kf3
{[%clk 0:00:21.9]} 33... f5 {[%clk 0:00:50.8]} 34. Rb2 {[%clk 0:00:10.3]} 34...
Kf6 {[%clk 0:00:50.3]} 35. Re2 {[%clk 0:00:08.9]} 35... Rh7 {[%clk 0:00:36.5]}
36. c5 {[%clk 0:00:06.1]} 36... Nb5 {[%clk 0:00:32.8]} 37. Bxb5 {[%clk
0:00:06.1]} 37... axb5 {[%clk 0:00:33]} 38. Ra2 {[%clk 0:00:02.2]} 38... Ke6
{[%clk 0:00:29.4]} 39. a6 {[%clk 0:00:02.9]} 39... bxa6 {[%clk 0:00:28.5]} 40.
Rxa6 {[%clk 0:00:03.8]} 40... Kd5 {[%clk 0:00:28.8]} 41. Kf4 {[%clk 0:00:04.7]}
41... Rh2 {[%clk 0:00:26.8]} 42. f3 {[%clk 0:00:04.2]} 42... Rd2 {[%clk
0:00:21.8]} 43. Kg5 {[%clk 0:00:04.3]} 43... Rd3 {[%clk 0:00:21.8]} 44. Kxg6
{[%clk 0:00:02]} 44... Rxf3 {[%clk 0:00:21.4]} 45. Kf6 {[%clk 0:00:01.8]} 45...
b4 {[%clk 0:00:20.5]} 46. Rb6 {[%clk 0:00:01.4]} 46... b3 {[%clk 0:00:20.7]} 47.
Kg5 {[%clk 0:00:01.2]} 47... Kxd4 {[%clk 0:00:16.1]} 48. Rxc6 {[%clk 0:00:01.2]}
48... b2 {[%clk 0:00:16.2]} 49. Rb6 {[%clk 0:00:01.9]} 49... Kc4 {[%clk
0:00:13.4]} 50. c6 {[%clk 0:00:02.3]} 50... Rb3 {[%clk 0:00:10.2]} 51. Rxb3
{[%clk 0:00:02.6]} 51... Kxb3 {[%clk 0:00:09.6]} 52. c7 {[%clk 0:00:03.5]} 52...
b1=Q {[%clk 0:00:09.8]} 53. c8=Q {[%clk 0:00:04.4]} 53... Qg1 {[%clk 0:00:07.2]}
54. Qe6+ {[%clk 0:00:04.2]} 54... Kc3 {[%clk 0:00:05.5]} 55. Qe5+ {[%clk
0:00:04.7]} 55... Kd3 {[%clk 0:00:05.4]} 56. Kxf5 {[%clk 0:00:05.6]} 56... Qf2+
{[%clk 0:00:04.4]} 57. Kg5 {[%clk 0:00:06.2]} 57... Qf1 {[%clk 0:00:03.1]} 58.
Qf5+ {[%clk 0:00:06.6]} 1-0

[Event "*** SCC Grand Prix: Titled Tuesday Blitz"]
[Site "Chess.com"]
[Date "2020.07.21"]
[Round "5"]
[White "LuisFSiles"]
[Black "aa175"]
[Result "0-1"]
[WhiteElo "2335"]
[BlackElo "2491"]
[TimeControl "180+1"]
[EndTime "10:56:32 PDT"]
[Termination "aa175 won by resignation"]

1. e4 {[%clk 0:03:00.9]} 1... c5 {[%clk 0:02:56.5]} 2. c3 {[%clk 0:02:59.8]}
2... Nf6 {[%clk 0:02:56]} 3. e5 {[%clk 0:02:57.6]} 3... Nd5 {[%clk 0:02:55.7]}
4. Nf3 {[%clk 0:02:57.8]} 4... Nc6 {[%clk 0:02:55.4]} 5. d4 {[%clk 0:02:57.6]}
5... cxd4 {[%clk 0:02:55.3]} 6. cxd4 {[%clk 0:02:58.5]} 6... d6 {[%clk
0:02:55.5]} 7. Bc4 {[%clk 0:02:58.5]} 7... Nb6 {[%clk 0:02:54.1]} 8. Bb5 {[%clk
0:02:57.3]} 8... dxe5 {[%clk 0:02:52.8]} 9. Nxe5 {[%clk 0:02:54]} 9... Bd7
{[%clk 0:02:48.6]} 10. Nxd7 {[%clk 0:02:52.3]} 10... Qxd7 {[%clk 0:02:49.5]} 11.
O-O {[%clk 0:02:44]} 11... e6 {[%clk 0:02:45.4]} 12. Qg4 {[%clk 0:02:39.6]}
12... a6 {[%clk 0:02:34.3]} 13. Bxc6 {[%clk 0:02:35.1]} 13... bxc6 {[%clk
0:02:35.2]} 14. Nc3 {[%clk 0:02:31.8]} 14... g6 {[%clk 0:02:25.7]} 15. Be3
{[%clk 0:01:44.6]} 15... Bg7 {[%clk 0:02:20.2]} 16. Rac1 {[%clk 0:01:42.4]}
16... O-O {[%clk 0:02:16.2]} 17. Rfd1 {[%clk 0:01:42.3]} 17... Nd5 {[%clk
0:02:07.1]} 18. Na4 {[%clk 0:01:34.3]} 18... Rab8 {[%clk 0:01:59.7]} 19. b3
{[%clk 0:01:33.9]} 19... Nb4 {[%clk 0:01:53.1]} 20. Nc5 {[%clk 0:01:26]} 20...
Qd5 {[%clk 0:01:49.2]} 21. Qe2 {[%clk 0:01:22.8]} 21... Qd6 {[%clk 0:01:26.4]}
22. Rc4 {[%clk 0:01:17.9]} 22... Nxa2 {[%clk 0:01:19.4]} 23. Qxa2 {[%clk
0:01:15.2]} 23... Rfd8 {[%clk 0:01:15.2]} 24. h3 {[%clk 0:00:55.2]} 24... e5
{[%clk 0:01:09.6]} 25. Rcc1 {[%clk 0:00:38.3]} 25... exd4 {[%clk 0:01:08.2]} 26.
Bg5 {[%clk 0:00:37.6]} 26... Re8 {[%clk 0:01:02.2]} 27. Qxa6 {[%clk 0:00:32.1]}
27... Rb5 {[%clk 0:00:54.6]} 28. Nd3 {[%clk 0:00:28.4]} 28... Rxg5 {[%clk
0:00:52.8]} 29. Qxc6 {[%clk 0:00:23.9]} 29... Qb8 {[%clk 0:00:39.1]} 30. b4
{[%clk 0:00:19.3]} 30... Bh6 {[%clk 0:00:33.6]} 31. Re1 {[%clk 0:00:18.8]} 31...
Rd8 {[%clk 0:00:30.8]} 32. Qc7 {[%clk 0:00:18.2]} 32... Qa8 {[%clk 0:00:24.1]}
33. Qc6 {[%clk 0:00:14.6]} 33... Qb8 {[%clk 0:00:22.3]} 34. b5 {[%clk
0:00:14.7]} 34... Qxb5 {[%clk 0:00:17.2]} 35. Qxb5 {[%clk 0:00:13.1]} 35... Rxb5
{[%clk 0:00:18.1]} 36. Rc4 {[%clk 0:00:13.1]} 36... Rb3 {[%clk 0:00:17.6]} 37.
Rd1 {[%clk 0:00:13.5]} 37... Rc3 {[%clk 0:00:16.9]} 38. Nb2 {[%clk 0:00:11.1]}
38... Rb3 {[%clk 0:00:12.8]} 39. Nd3 {[%clk 0:00:07.3]} 39... Bg7 {[%clk
0:00:12.8]} 40. Nc5 {[%clk 0:00:06.8]} 40... Rb6 {[%clk 0:00:09.4]} 41. Nd3
{[%clk 0:00:07.2]} 41... Rbd6 {[%clk 0:00:07.9]} 42. g4 {[%clk 0:00:07]} 42...
h6 {[%clk 0:00:08]} 43. Nf4 {[%clk 0:00:06.9]} 43... Kh7 {[%clk 0:00:08]} 44.
Nd3 {[%clk 0:00:06.9]} 44... R6d7 {[%clk 0:00:08.1]} 45. f3 {[%clk 0:00:07.3]}
45... Re7 {[%clk 0:00:08.4]} 46. Rd2 {[%clk 0:00:07.3]} 46... Re3 {[%clk
0:00:07.7]} 47. Kf2 {[%clk 0:00:07.2]} 47... Rde8 {[%clk 0:00:07.3]} 48. Nb2
{[%clk 0:00:06.8]} 48... Rc3 {[%clk 0:00:04.7]} 49. Nd3 {[%clk 0:00:06.7]} 49...
Rxc4 {[%clk 0:00:04.6]} 50. Nb2 {[%clk 0:00:05.2]} 50... Rc3 {[%clk 0:00:04.7]}
51. Nd1 {[%clk 0:00:05.2]} 51... Ree3 {[%clk 0:00:04.3]} 52. Nxc3 {[%clk
0:00:04.3]} 52... Rxc3 {[%clk 0:00:04.2]} 53. Rd1 {[%clk 0:00:03.8]} 53... Rc2+
{[%clk 0:00:03.9]} 54. Kg3 {[%clk 0:00:04.2]} 54... Rc3 {[%clk 0:00:04.4]} 55.
Kf2 {[%clk 0:00:04]} 55... g5 {[%clk 0:00:05]} 56. Kg3 {[%clk 0:00:04.9]} 56...
Kg6 {[%clk 0:00:05.5]} 57. h4 {[%clk 0:00:04.9]} 57... Be5+ {[%clk 0:00:05.3]}
58. Kh3 {[%clk 0:00:05.2]} 58... Bf4 {[%clk 0:00:06.2]} 59. h5+ {[%clk 0:00:06]}
59... Kf6 {[%clk 0:00:06.4]} 60. Rxd4 {[%clk 0:00:06.3]} 60... Rxf3+ {[%clk
0:00:06.6]} 61. Kg2 {[%clk 0:00:05.8]} 61... Rg3+ {[%clk 0:00:07.5]} 62. Kf2
{[%clk 0:00:06.7]} 62... Be3+ {[%clk 0:00:07.1]} 63. Ke2 {[%clk 0:00:06.3]}
63... Bxd4 {[%clk 0:00:08]} 64. Kf1 {[%clk 0:00:04.8]} 64... Ke5 {[%clk
0:00:07.8]} 65. Ke2 {[%clk 0:00:05.7]} 65... Kf4 {[%clk 0:00:08.3]} 66. Kd2
{[%clk 0:00:06.6]} 66... Re3 {[%clk 0:00:08.1]} 67. Kc1 {[%clk 0:00:07.5]} 67...
Kxg4 {[%clk 0:00:09]} 68. Kb1 {[%clk 0:00:08.4]} 68... Kxh5 {[%clk 0:00:09.9]}
69. Ka2 {[%clk 0:00:09.3]} 69... f5 {[%clk 0:00:10.8]} 70. Kb1 {[%clk
0:00:08.9]} 70... f4 {[%clk 0:00:11.7]} 0-1

[Event "*** SCC Grand Prix: Titled Tuesday Blitz"]
[Site "Chess.com"]
[Date "2020.07.21"]
[Round "5"]
[White "chalowey97"]
[Black "Pavel_Mir"]
[Result "0-1"]
[WhiteElo "2126"]
[BlackElo "2342"]
[TimeControl "180+1"]
[EndTime "10:56:36 PDT"]
[Termination "Pavel_Mir won by checkmate"]

1. d4 {[%clk 0:03:00.9]} 1... Nf6 {[%clk 0:02:56.4]} 2. Nf3 {[%clk 0:03:01.3]}
2... c5 {[%clk 0:02:45.5]} 3. d5 {[%clk 0:03:01.1]} 3... b5 {[%clk 0:02:44.5]}
4. c4 {[%clk 0:02:57.4]} 4... Bb7 {[%clk 0:02:41.5]} 5. Nc3 {[%clk 0:02:53]}
5... b4 {[%clk 0:02:40.5]} 6. Nb1 {[%clk 0:02:53.2]} 6... g6 {[%clk 0:02:36.1]}
7. g3 {[%clk 0:02:52.7]} 7... Bg7 {[%clk 0:02:36.2]} 8. Bg2 {[%clk 0:02:53.3]}
8... O-O {[%clk 0:02:35.9]} 9. O-O {[%clk 0:02:53.8]} 9... d6 {[%clk 0:02:35.3]}
10. Re1 {[%clk 0:02:54]} 10... a5 {[%clk 0:02:30.9]} 11. e4 {[%clk 0:02:52.7]}
11... Nfd7 {[%clk 0:02:30.8]} 12. Bf4 {[%clk 0:02:52.5]} 12... Na6 {[%clk
0:02:26.4]} 13. Qc2 {[%clk 0:02:51.7]} 13... Nb6 {[%clk 0:02:13]} 14. Nbd2
{[%clk 0:02:50.5]} 14... a4 {[%clk 0:02:13.1]} 15. e5 {[%clk 0:02:49.5]} 15...
b3 {[%clk 0:02:01.4]} 16. axb3 {[%clk 0:02:43.8]} 16... Nb4 {[%clk 0:02:01.8]}
17. Qc3 {[%clk 0:02:31.3]} 17... axb3 {[%clk 0:01:32.7]} 18. Rxa8 {[%clk
0:02:30.9]} 18... Qxa8 {[%clk 0:01:30.3]} 19. Qxb3 {[%clk 0:02:25.9]} 19... Qa5
{[%clk 0:01:22.1]} 20. exd6 {[%clk 0:02:25.6]} 20... exd6 {[%clk 0:01:20.7]} 21.
Bxd6 {[%clk 0:02:26.5]} 21... Rc8 {[%clk 0:01:18.7]} 22. Bh3 {[%clk 0:02:24.4]}
22... f5 {[%clk 0:01:14.1]} 23. Ng5 {[%clk 0:02:23.5]} 23... N4xd5 {[%clk
0:01:08]} 24. cxd5 {[%clk 0:02:16.7]} 24... Qxd2 {[%clk 0:01:06.5]} 25. Nf3
{[%clk 0:02:14.8]} 25... Qxd5 {[%clk 0:01:01.6]} 26. Qxd5+ {[%clk 0:02:00.7]}
26... Bxd5 {[%clk 0:01:01.4]} 27. Ne5 {[%clk 0:01:53]} 27... c4 {[%clk
0:00:44.6]} 28. f4 {[%clk 0:01:45.1]} 28... Na4 {[%clk 0:00:41.6]} 29. Ba3
{[%clk 0:01:43.6]} 29... Be4 {[%clk 0:00:34.7]} 30. Bf1 {[%clk 0:01:42.2]} 30...
Bxe5 {[%clk 0:00:29.7]} 31. fxe5 {[%clk 0:01:42.1]} 31... Kf7 {[%clk 0:00:28.5]}
32. Rc1 {[%clk 0:01:42.2]} 32... Nb6 {[%clk 0:00:20.2]} 33. Kf2 {[%clk
0:01:34.4]} 33... Ke6 {[%clk 0:00:20.5]} 34. Bd6 {[%clk 0:01:34.9]} 34... Bd5
{[%clk 0:00:18.1]} 35. h4 {[%clk 0:01:32.1]} 35... Ra8 {[%clk 0:00:18]} 36. Bc7
{[%clk 0:01:23.2]} 36... Ra2 {[%clk 0:00:16.1]} 37. Rc2 {[%clk 0:01:16.7]} 37...
Na4 {[%clk 0:00:14.3]} 38. Bxc4 {[%clk 0:01:13.1]} 38... Bxc4 {[%clk 0:00:12.9]}
39. Rxc4 {[%clk 0:01:13.6]} 39... Rxb2+ {[%clk 0:00:10.4]} 40. Kf3 {[%clk
0:01:12.2]} 40... Rb3+ {[%clk 0:00:09.9]} 41. Kf4 {[%clk 0:01:10.3]} 41... Nc3
{[%clk 0:00:10.1]} 42. Rc6+ {[%clk 0:00:52.1]} 42... Kd7 {[%clk 0:00:09.6]} 43.
Rc4 {[%clk 0:00:38.2]} 43... Nd5+ {[%clk 0:00:08.7]} 44. Kg5 {[%clk 0:00:36.6]}
44... Nxc7 {[%clk 0:00:08.4]} 45. Kh6 {[%clk 0:00:36.2]} 45... Rxg3 {[%clk
0:00:07.4]} 46. Kxh7 {[%clk 0:00:36]} 46... Ne6 {[%clk 0:00:07.8]} 47. Ra4
{[%clk 0:00:32.9]} 47... Rg4 {[%clk 0:00:08.3]} 48. Ra7+ {[%clk 0:00:32]} 48...
Kc6 {[%clk 0:00:08.6]} 49. Ra6+ {[%clk 0:00:29.6]} 49... Kd5 {[%clk 0:00:08.8]}
50. Kh6 {[%clk 0:00:27.7]} 50... Kxe5 {[%clk 0:00:08.4]} 51. Ra5+ {[%clk
0:00:28.1]} 51... Kf6 {[%clk 0:00:06.9]} 52. h5 {[%clk 0:00:26.5]} 52... Rh4
{[%clk 0:00:06]} 53. Kh7 {[%clk 0:00:27]} 53... Rxh5+ {[%clk 0:00:06.7]} 54. Kg8
{[%clk 0:00:27.8]} 54... f4 {[%clk 0:00:07.1]} 55. Ra2 {[%clk 0:00:25.4]} 55...
Rf5 {[%clk 0:00:06.9]} 56. Rg2 {[%clk 0:00:23.6]} 56... f3 {[%clk 0:00:06.6]}
57. Rf2 {[%clk 0:00:24.5]} 57... g5 {[%clk 0:00:06.2]} 58. Kh7 {[%clk
0:00:25.4]} 58... g4 {[%clk 0:00:07.1]} 59. Rh2 {[%clk 0:00:25.8]} 59... g3
{[%clk 0:00:06.5]} 60. Rh6+ {[%clk 0:00:26.7]} 60... Ke5 {[%clk 0:00:05.9]} 61.
Kg6 {[%clk 0:00:26.7]} 61... Rf6+ {[%clk 0:00:05.7]} 62. Kh7 {[%clk 0:00:25.9]}
62... Rxh6+ {[%clk 0:00:05.3]} 63. Kxh6 {[%clk 0:00:26.8]} 63... g2 {[%clk
0:00:05.6]} 64. Kh5 {[%clk 0:00:27.7]} 64... g1=Q {[%clk 0:00:05.7]} 65. Kh4
{[%clk 0:00:28.6]} 65... Qh2+ {[%clk 0:00:04.8]} 66. Kg4 {[%clk 0:00:28.6]}
66... Qg2+ {[%clk 0:00:04.9]} 67. Kh4 {[%clk 0:00:29]} 67... Qg5+ {[%clk
0:00:04.9]} 68. Kh3 {[%clk 0:00:28.8]} 68... Nf4+ {[%clk 0:00:05.5]} 69. Kh2
{[%clk 0:00:28.2]} 69... Qg2# {[%clk 0:00:06.1]} 0-1